[Event "Late-Titled-Tuesday-Blitz-February-13-2024"]
[Site "Chess.com"]
[Date "2024.02.13"]
[Round "10"]
[White "JaackCamel"]
[Black "gxbg2000"]
[Result "1-0"]
[WhiteElo "2201"]
[BlackElo "2049"]
[TimeControl "180+1"]
[EndTime "15:55:54 PST"]
[Termination "JaackCamel won on time"]

1. d4 {[%clk 0:03:00.9]} 1... d5 {[%clk 0:02:56.4]} 2. c4 {[%clk 0:03:00.5]}
2... c6 {[%clk 0:02:56.6]} 3. cxd5 {[%clk 0:03:00.1]} 3... cxd5 {[%clk
0:02:55.9]} 4. Bf4 {[%clk 0:03:00.2]} 4... g6 {[%clk 0:02:56]} 5. e3 {[%clk
0:02:59.8]} 5... Bg7 {[%clk 0:02:55.5]} 6. Nc3 {[%clk 0:02:59.4]} 6... a6 {[%clk
0:02:55.7]} 7. Bd3 {[%clk 0:02:55.8]} 7... Nf6 {[%clk 0:02:55.5]} 8. h3 {[%clk
0:02:54.8]} 8... O-O {[%clk 0:02:56.4]} 9. Nf3 {[%clk 0:02:49.8]} 9... Nc6
{[%clk 0:02:56.8]} 10. O-O {[%clk 0:02:49]} 10... Re8 {[%clk 0:02:57]} 11. Rc1
{[%clk 0:02:47.1]} 11... Bf5 {[%clk 0:02:44.8]} 12. Bxf5 {[%clk 0:02:44]} 12...
gxf5 {[%clk 0:02:45.7]} 13. a3 {[%clk 0:02:37.8]} 13... e6 {[%clk 0:02:45.6]}
14. Na4 {[%clk 0:02:37]} 14... Rc8 {[%clk 0:02:38.1]} 15. b4 {[%clk 0:02:35]}
15... Ne4 {[%clk 0:02:33.2]} 16. Nc5 {[%clk 0:02:31.2]} 16... Qe7 {[%clk
0:02:32]} 17. Qe2 {[%clk 0:02:15.9]} 17... Red8 {[%clk 0:02:28]} 18. Rc2 {[%clk
0:02:09.5]} 18... Na7 {[%clk 0:02:24]} 19. Rfc1 {[%clk 0:01:55.9]} 19... Nb5
{[%clk 0:02:23.4]} 20. Qd3 {[%clk 0:01:39.9]} 20... Nbd6 {[%clk 0:02:20.7]} 21.
Be5 {[%clk 0:01:35.2]} 21... Nc4 {[%clk 0:02:17.5]} 22. Bxg7 {[%clk 0:01:31.2]}
22... Kxg7 {[%clk 0:02:17.6]} 23. Qb3 {[%clk 0:01:17.7]} 23... f6 {[%clk
0:02:04.7]} 24. a4 {[%clk 0:01:08]} 24... Rg8 {[%clk 0:02:03]} 25. Nd3 {[%clk
0:00:48.9]} 25... Kf7 {[%clk 0:01:59.4]} 26. Nf4 {[%clk 0:00:46.9]} 26... Qd7
{[%clk 0:01:48.9]} 27. b5 {[%clk 0:00:42.2]} 27... a5 {[%clk 0:01:42.8]} 28. Ne1
{[%clk 0:00:27.4]} 28... b6 {[%clk 0:01:41.7]} 29. Qd3 {[%clk 0:00:23.3]} 29...
Qd6 {[%clk 0:01:22.9]} 30. Nf3 {[%clk 0:00:19.4]} 30... Rc7 {[%clk 0:00:50.7]}
31. Ne1 {[%clk 0:00:19.1]} 31... Ke8 {[%clk 0:00:46.9]} 32. f3 {[%clk
0:00:19.4]} 32... Ng5 {[%clk 0:00:43.5]} 33. h4 {[%clk 0:00:18.9]} 33... Nf7
{[%clk 0:00:40.3]} 34. Qe2 {[%clk 0:00:18.7]} 34... Nd8 {[%clk 0:00:36.4]} 35.
Ned3 {[%clk 0:00:18.3]} 35... Rcg7 {[%clk 0:00:33.6]} 36. Qf1 {[%clk 0:00:17.6]}
36... Rc7 {[%clk 0:00:19.4]} 37. Re2 {[%clk 0:00:16.4]} 37... Kf7 {[%clk
0:00:18.5]} 38. Rcc2 {[%clk 0:00:15.3]} 38... Nb7 {[%clk 0:00:17.4]} 39. Kh1
{[%clk 0:00:14.9]} 39... Rgc8 {[%clk 0:00:15.7]} 40. Kh2 {[%clk 0:00:14.5]}
40... Nd8 {[%clk 0:00:15]} 41. Kh1 {[%clk 0:00:14.7]} 41... Kg8 {[%clk
0:00:15.3]} 42. g3 {[%clk 0:00:15.1]} 42... Kh8 {[%clk 0:00:15.6]} 43. Qh3
{[%clk 0:00:15.3]} 43... Nf7 {[%clk 0:00:15.8]} 44. Rc1 {[%clk 0:00:15.4]} 44...
Nh6 {[%clk 0:00:15.9]} 45. Rg1 {[%clk 0:00:15.3]} 45... Rg7 {[%clk 0:00:15.6]}
46. Nh5 {[%clk 0:00:15.6]} 46... Rg6 {[%clk 0:00:15.2]} 47. Ndf4 {[%clk
0:00:14.1]} 47... Rcg8 {[%clk 0:00:14]} 48. Nxg6+ {[%clk 0:00:13.6]} 48... Rxg6
{[%clk 0:00:13.8]} 49. Nf4 {[%clk 0:00:14.2]} 49... Rg7 {[%clk 0:00:12.3]} 50.
h5 {[%clk 0:00:14.3]} 50... Rg5 {[%clk 0:00:11.4]} 51. Qh4 {[%clk 0:00:13.7]}
51... e5 {[%clk 0:00:11.5]} 52. dxe5 {[%clk 0:00:13.1]} 52... fxe5 {[%clk
0:00:11.4]} 53. Nh3 {[%clk 0:00:12.4]} 53... Rg8 {[%clk 0:00:05.8]} 54. f4
{[%clk 0:00:11.4]} 54... e4 {[%clk 0:00:05.6]} 55. Ng5 {[%clk 0:00:11.4]} 55...
Qe7 {[%clk 0:00:03.8]} 56. Rd1 {[%clk 0:00:10.4]} 56... Nf7 {[%clk 0:00:02.5]}
57. Rxd5 {[%clk 0:00:10]} 57... Nxg5 {[%clk 0:00:02]} 58. fxg5 {[%clk
0:00:09.7]} 58... Qxg5 {[%clk 0:00:01.2]} 59. Qxg5 {[%clk 0:00:09.6]} 1-0

[Event "Late-Titled-Tuesday-Blitz-February-13-2024"]
[Site "Chess.com"]
[Date "2024.02.13"]
[Round "10"]
[White "GianmarcoVaR"]
[Black "KuzubovYuriy"]
[Result "1-0"]
[WhiteElo "2755"]
[BlackElo "2965"]
[TimeControl "180+1"]
[EndTime "15:55:59 PST"]
[Termination "GianmarcoVaR won by resignation"]

1. e4 {[%clk 0:02:56]} 1... e6 {[%clk 0:02:58.9]} 2. d4 {[%clk 0:02:55.4]} 2...
d5 {[%clk 0:02:59.2]} 3. Nc3 {[%clk 0:02:49.8]} 3... Bb4 {[%clk 0:02:59.1]} 4.
e5 {[%clk 0:02:47.7]} 4... Ne7 {[%clk 0:02:59]} 5. Qg4 {[%clk 0:02:42.4]} 5...
Nf5 {[%clk 0:02:52.1]} 6. a3 {[%clk 0:02:42]} 6... Be7 {[%clk 0:02:45.6]} 7. Nf3
{[%clk 0:02:32.4]} 7... Nc6 {[%clk 0:02:38]} 8. h4 {[%clk 0:02:22.3]} 8... h5
{[%clk 0:02:29.7]} 9. Qf4 {[%clk 0:02:20.3]} 9... b6 {[%clk 0:02:28]} 10. Bd3
{[%clk 0:02:12]} 10... Qd7 {[%clk 0:02:26.4]} 11. Ne2 {[%clk 0:01:39.6]} 11...
a5 {[%clk 0:02:23.6]} 12. Ng3 {[%clk 0:01:35.6]} 12... g6 {[%clk 0:02:22.5]} 13.
Nxf5 {[%clk 0:01:33]} 13... exf5 {[%clk 0:02:18]} 14. Qg3 {[%clk 0:01:23.2]}
14... Ba6 {[%clk 0:02:06.2]} 15. Bxa6 {[%clk 0:01:22.8]} 15... Rxa6 {[%clk
0:02:06.3]} 16. Bg5 {[%clk 0:01:23.7]} 16... Bxg5 {[%clk 0:02:00.7]} 17. Qxg5
{[%clk 0:01:21.5]} 17... Qe7 {[%clk 0:02:00.1]} 18. Qd2 {[%clk 0:01:07.7]} 18...
a4 {[%clk 0:02:00.3]} 19. c4 {[%clk 0:00:54.1]} 19... Qd7 {[%clk 0:01:43.6]} 20.
O-O {[%clk 0:00:52.1]} 20... Na5 {[%clk 0:01:40.8]} 21. cxd5 {[%clk 0:00:47]}
21... Qxd5 {[%clk 0:01:40.2]} 22. Qc3 {[%clk 0:00:39.9]} 22... Ra7 {[%clk
0:01:34.5]} 23. Rad1 {[%clk 0:00:29.4]} 23... c6 {[%clk 0:01:33.1]} 24. Qb4
{[%clk 0:00:20.8]} 24... b5 {[%clk 0:01:21.8]} 25. Rfe1 {[%clk 0:00:21.4]} 25...
Nc4 {[%clk 0:01:12.7]} 26. e6 {[%clk 0:00:15.4]} 26... f6 {[%clk 0:01:12.7]} 27.
e7 {[%clk 0:00:13.8]} 27... Rh7 {[%clk 0:01:12.3]} 28. Nd2 {[%clk 0:00:09.4]}
28... Nxd2 {[%clk 0:01:03.6]} 29. Rxd2 {[%clk 0:00:09.4]} 29... Raxe7 {[%clk
0:01:03.8]} 30. Rde2 {[%clk 0:00:08.3]} 30... Qd7 {[%clk 0:01:00.3]} 31. Qa5
{[%clk 0:00:03.1]} 31... Rxe2 {[%clk 0:00:55.9]} 32. Rxe2+ {[%clk 0:00:03.7]}
32... Re7 {[%clk 0:00:55.8]} 33. Qa8+ {[%clk 0:00:03.9]} 33... Kf7 {[%clk
0:00:56.1]} 34. Rxe7+ {[%clk 0:00:03.9]} 34... Kxe7 {[%clk 0:00:55.8]} 35. Qg8
{[%clk 0:00:01.4]} 35... Qe8 {[%clk 0:00:55.1]} 36. Qg7+ {[%clk 0:00:01]} 36...
Qf7 {[%clk 0:00:55.5]} 37. Qh8 {[%clk 0:00:01.8]} 37... Kd7 {[%clk 0:00:47.4]}
38. g3 {[%clk 0:00:02.3]} 38... g5 {[%clk 0:00:43.6]} 39. hxg5 {[%clk
0:00:02.1]} 39... fxg5 {[%clk 0:00:44]} 40. Qe5 {[%clk 0:00:02.6]} 40... h4
{[%clk 0:00:42.4]} 41. f4 {[%clk 0:00:02.2]} 41... hxg3 {[%clk 0:00:38.5]} 42.
fxg5 {[%clk 0:00:02.7]} 42... f4 {[%clk 0:00:38.8]} 43. Qe4 {[%clk 0:00:01.1]}
43... f3 {[%clk 0:00:37]} 44. Qg4+ {[%clk 0:00:01.2]} 44... Kd6 {[%clk 0:00:35]}
45. Qxg3+ {[%clk 0:00:02.1]} 45... Kd5 {[%clk 0:00:34.7]} 46. Qe5+ {[%clk
0:00:02.4]} 46... Kc4 {[%clk 0:00:34.7]} 47. Qf6 {[%clk 0:00:02.9]} 47... Qh5
{[%clk 0:00:32.3]} 48. Kf2 {[%clk 0:00:03.1]} 48... Qh2+ {[%clk 0:00:20.3]} 49.
Kxf3 {[%clk 0:00:03.2]} 49... Qh1+ {[%clk 0:00:18.1]} 50. Kf4 {[%clk 0:00:03]}
50... Qf1+ {[%clk 0:00:17.3]} 51. Ke5 {[%clk 0:00:03.2]} 51... Qe2+ {[%clk
0:00:16.5]} 52. Kd6 {[%clk 0:00:03.5]} 52... Qxb2 {[%clk 0:00:16.7]} 53. g6
{[%clk 0:00:03.5]} 53... Qh2+ {[%clk 0:00:13.1]} 54. Kxc6 {[%clk 0:00:03.4]}
54... b4 {[%clk 0:00:10.3]} 55. g7 {[%clk 0:00:01.8]} 55... Qg2+ {[%clk
0:00:10.4]} 56. Kb6 {[%clk 0:00:01.5]} 56... bxa3 {[%clk 0:00:08.9]} 57. Qf7+
{[%clk 0:00:02]} 57... Kxd4 {[%clk 0:00:08.5]} 58. g8=Q {[%clk 0:00:02.6]} 58...
Qxg8 {[%clk 0:00:08.4]} 59. Qxg8 {[%clk 0:00:02.8]} 59... Kc3 {[%clk 0:00:08.5]}
60. Qa2 {[%clk 0:00:03.6]} 60... Kb4 {[%clk 0:00:08.6]} 61. Ka6 {[%clk
0:00:04.3]} 1-0

[Event "Late-Titled-Tuesday-Blitz-February-13-2024"]
[Site "Chess.com"]
[Date "2024.02.13"]
[Round "10"]
[White "Rinqed222"]
[Black "HajiyevKanan"]
[Result "1-0"]
[WhiteElo "2291"]
[BlackElo "2457"]
[TimeControl "180+1"]
[EndTime "15:56:00 PST"]
[Termination "Rinqed222 won on time"]

1. e4 {[%clk 0:03:00.9]} 1... c6 {[%clk 0:03:00.6]} 2. d4 {[%clk 0:03:00.6]}
2... d5 {[%clk 0:03:01.5]} 3. e5 {[%clk 0:03:01.1]} 3... a6 {[%clk 0:03:01.5]}
4. Bd3 {[%clk 0:02:53.1]} 4... c5 {[%clk 0:02:59.9]} 5. c3 {[%clk 0:02:50.8]}
5... Nc6 {[%clk 0:02:59.3]} 6. Be3 {[%clk 0:02:41.3]} 6... Qb6 {[%clk
0:02:57.2]} 7. Qd2 {[%clk 0:02:25.5]} 7... c4 {[%clk 0:02:49.6]} 8. Bf1 {[%clk
0:02:14.3]} 8... Bf5 {[%clk 0:02:47.6]} 9. Na3 {[%clk 0:02:13.1]} 9... e6 {[%clk
0:02:47.9]} 10. Nxc4 {[%clk 0:02:03.2]} 10... dxc4 {[%clk 0:02:44.6]} 11. d5
{[%clk 0:02:03.4]} 11... Qb5 {[%clk 0:02:40]} 12. dxc6 {[%clk 0:02:03]} 12...
Qxc6 {[%clk 0:02:36.1]} 13. O-O-O {[%clk 0:01:58.9]} 13... Be7 {[%clk 0:02:28]}
14. Nf3 {[%clk 0:01:54.9]} 14... Rd8 {[%clk 0:02:20.3]} 15. Nd4 {[%clk 0:01:55]}
15... Qe4 {[%clk 0:02:17.9]} 16. Nxf5 {[%clk 0:01:25.3]} 16... Rxd2 {[%clk
0:02:14.3]} 17. Nxg7+ {[%clk 0:01:25.6]} 17... Kf8 {[%clk 0:02:13]} 18. Nxe6+
{[%clk 0:01:26.1]} 18... fxe6 {[%clk 0:02:13.1]} 19. Rxd2 {[%clk 0:01:26.4]}
19... Qxe5 {[%clk 0:01:52.6]} 20. Bxc4 {[%clk 0:01:06.4]} 20... Nf6 {[%clk
0:01:48.5]} 21. Bd4 {[%clk 0:00:51.4]} 21... Qg5 {[%clk 0:01:39.2]} 22. Re1
{[%clk 0:00:42.4]} 22... Bc5 {[%clk 0:01:16.6]} 23. Re5 {[%clk 0:00:34.7]} 23...
Qxg2 {[%clk 0:00:58.8]} 24. Bxc5+ {[%clk 0:00:34.1]} 24... Kg7 {[%clk
0:00:59.5]} 25. f4 {[%clk 0:00:26.5]} 25... Qh1+ {[%clk 0:00:54.7]} 26. Kc2
{[%clk 0:00:24.9]} 26... Rc8 {[%clk 0:00:48.9]} 27. Bxe6 {[%clk 0:00:13.1]}
27... Rxc5 {[%clk 0:00:46.2]} 28. Rxc5 {[%clk 0:00:14]} 28... Qe4+ {[%clk
0:00:46.2]} 29. Kc1 {[%clk 0:00:10.6]} 29... Qxe6 {[%clk 0:00:41]} 30. Re5
{[%clk 0:00:10.8]} 30... Qxa2 {[%clk 0:00:39.7]} 31. Re7+ {[%clk 0:00:10.6]}
31... Kg6 {[%clk 0:00:32.7]} 32. Rxb7 {[%clk 0:00:11.5]} 32... Qa1+ {[%clk
0:00:31.5]} 33. Kc2 {[%clk 0:00:12]} 33... Qa4+ {[%clk 0:00:27.8]} 34. Kc1
{[%clk 0:00:10.4]} 34... Qxf4 {[%clk 0:00:25.7]} 35. Rb6 {[%clk 0:00:09.8]}
35... a5 {[%clk 0:00:23.2]} 36. Kc2 {[%clk 0:00:08.6]} 36... Qe4+ {[%clk
0:00:18.2]} 37. Kc1 {[%clk 0:00:08.5]} 37... a4 {[%clk 0:00:18.8]} 38. Rdd6
{[%clk 0:00:08.5]} 38... Qf4+ {[%clk 0:00:14.5]} 39. Kc2 {[%clk 0:00:09]} 39...
Qf2+ {[%clk 0:00:12.6]} 40. Kc1 {[%clk 0:00:09.5]} 40... Qxh2 {[%clk 0:00:09.3]}
41. Rxf6+ {[%clk 0:00:08.9]} 41... Kg5 {[%clk 0:00:09.9]} 42. Rfd6 {[%clk
0:00:06.8]} 42... Qg1+ {[%clk 0:00:09.4]} 43. Kc2 {[%clk 0:00:06.8]} 43... Qf2+
{[%clk 0:00:10.1]} 44. Kd3 {[%clk 0:00:06.9]} 44... Qf5+ {[%clk 0:00:08.3]} 45.
Kd4 {[%clk 0:00:05.9]} 45... Qf4+ {[%clk 0:00:08.8]} 46. Kd3 {[%clk 0:00:06.2]}
46... Qf3+ {[%clk 0:00:06.1]} 47. Kd4 {[%clk 0:00:06.6]} 47... h5 {[%clk
0:00:06.7]} 48. Rd5+ {[%clk 0:00:06.1]} 48... Kh4 {[%clk 0:00:05.5]} 49. Re6
{[%clk 0:00:05.2]} 49... Qf2+ {[%clk 0:00:04.3]} 50. Re3 {[%clk 0:00:04.7]}
50... Kg4 {[%clk 0:00:03.2]} 51. Re5 {[%clk 0:00:04.5]} 51... Qd2+ {[%clk
0:00:03.4]} 52. Kc4 {[%clk 0:00:04.3]} 52... Qxb2 {[%clk 0:00:03.5]} 53. R3e4+
{[%clk 0:00:04.8]} 53... Kf3 {[%clk 0:00:03.8]} 54. Re3+ {[%clk 0:00:05.4]}
54... Kf2 {[%clk 0:00:03.9]} 55. R3e4 {[%clk 0:00:03]} 55... Qb3+ {[%clk
0:00:04.2]} 56. Kc5 {[%clk 0:00:03]} 56... Qxc3+ {[%clk 0:00:04.2]} 57. Kd5
{[%clk 0:00:03.7]} 57... Qd3+ {[%clk 0:00:03.7]} 58. Ke6 {[%clk 0:00:03.9]}
58... a3 {[%clk 0:00:03.2]} 59. Rf5+ {[%clk 0:00:04.8]} 59... Kg3 {[%clk
0:00:01.9]} 60. Rg5+ {[%clk 0:00:04.9]} 1-0

[Event "Late-Titled-Tuesday-Blitz-February-13-2024"]
[Site "Chess.com"]
[Date "2024.02.13"]
[Round "10"]
[White "Sl4werThanYou"]
[Black "Njal28"]
[Result "1-0"]
[WhiteElo "2703"]
[BlackElo "2965"]
[TimeControl "180+1"]
[EndTime "15:56:01 PST"]
[Termination "Sl4werThanYou won by resignation"]

1. e4 {[%clk 0:03:00.9]} 1... e5 {[%clk 0:02:59.5]} 2. Nf3 {[%clk 0:02:57.4]}
2... Nc6 {[%clk 0:02:59.6]} 3. Nc3 {[%clk 0:02:53.9]} 3... Nf6 {[%clk
0:02:59.5]} 4. h3 {[%clk 0:02:51]} 4... Bb4 {[%clk 0:02:57.2]} 5. Bd3 {[%clk
0:02:40.3]} 5... d6 {[%clk 0:02:55.1]} 6. a3 {[%clk 0:02:40.2]} 6... Bc5 {[%clk
0:02:53.9]} 7. b4 {[%clk 0:02:37.4]} 7... Bb6 {[%clk 0:02:54.4]} 8. Bc4 {[%clk
0:02:28.7]} 8... Nxe4 {[%clk 0:02:40.5]} 9. Nxe4 {[%clk 0:02:28]} 9... d5 {[%clk
0:02:41]} 10. Bd3 {[%clk 0:02:16.9]} 10... dxe4 {[%clk 0:02:38.8]} 11. Bxe4
{[%clk 0:02:17.8]} 11... O-O {[%clk 0:02:38]} 12. O-O {[%clk 0:02:11.6]} 12...
f5 {[%clk 0:02:19.9]} 13. Bxc6 {[%clk 0:02:11.1]} 13... bxc6 {[%clk 0:02:20.8]}
14. d3 {[%clk 0:02:07]} 14... e4 {[%clk 0:02:20.2]} 15. dxe4 {[%clk 0:02:02.1]}
15... Ba6 {[%clk 0:02:18.2]} 16. Re1 {[%clk 0:01:48.4]} 16... fxe4 {[%clk
0:01:06.5]} 17. Qxd8 {[%clk 0:01:44]} 17... Raxd8 {[%clk 0:01:07.4]} 18. Rxe4
{[%clk 0:01:44]} 18... Rd1+ {[%clk 0:01:08]} 19. Kh2 {[%clk 0:01:44.5]} 19...
Rf1 {[%clk 0:01:08.5]} 20. Bb2 {[%clk 0:01:22.9]} 20... Rxf2 {[%clk 0:01:08.4]}
21. Nd4 {[%clk 0:01:23.4]} 21... Bb7 {[%clk 0:00:55.2]} 22. Rg4 {[%clk
0:01:22.3]} 22... Bc8 {[%clk 0:00:48.5]} 23. Ne6 {[%clk 0:01:07.7]} 23... R8f7
{[%clk 0:00:43.3]} 24. Rd1 {[%clk 0:00:59.6]} 24... Bd7 {[%clk 0:00:20.8]} 25.
Rxg7+ {[%clk 0:00:49.5]} 25... Rxg7 {[%clk 0:00:21]} 26. Nxg7 {[%clk 0:00:50.4]}
26... Rxc2 {[%clk 0:00:21.1]} 27. Be5 {[%clk 0:00:40.9]} 27... Re2 {[%clk
0:00:15.9]} 28. Ba1 {[%clk 0:00:36.9]} 28... Be6 {[%clk 0:00:13]} 29. Nh5 {[%clk
0:00:31.5]} 29... Ra2 {[%clk 0:00:07]} 30. Rd8+ {[%clk 0:00:08]} 30... Kf7
{[%clk 0:00:07.2]} 31. Be5 {[%clk 0:00:07.2]} 31... Bd5 {[%clk 0:00:07.6]} 32.
Nf4 {[%clk 0:00:06.1]} 32... Rxa3 {[%clk 0:00:08.2]} 33. Rd7+ {[%clk 0:00:04.5]}
33... Ke8 {[%clk 0:00:08.7]} 34. Rxh7 {[%clk 0:00:04.9]} 34... Bf2 {[%clk
0:00:08.9]} 35. Nh5 {[%clk 0:00:03.8]} 35... Bb6 {[%clk 0:00:02.4]} 36. Nf6+
{[%clk 0:00:04]} 36... Kd8 {[%clk 0:00:03]} 37. h4 {[%clk 0:00:04.9]} 37... Ra2
{[%clk 0:00:03]} 38. Rg7 {[%clk 0:00:04.4]} 38... Re2 {[%clk 0:00:03.8]} 39. Bc3
{[%clk 0:00:02.6]} 39... Rc2 {[%clk 0:00:03.9]} 40. Be5 {[%clk 0:00:02.9]} 40...
Kc8 {[%clk 0:00:04.4]} 41. h5 {[%clk 0:00:03.1]} 41... Re2 {[%clk 0:00:05]} 42.
Ba1 {[%clk 0:00:02.7]} 42... Re1 {[%clk 0:00:05]} 43. h6 {[%clk 0:00:03]} 43...
Bg1+ {[%clk 0:00:04.8]} 44. Kg3 {[%clk 0:00:02.3]} 44... Rxa1 {[%clk 0:00:05.7]}
45. h7 {[%clk 0:00:02.7]} 45... Bd4 {[%clk 0:00:06.6]} 46. h8=Q+ {[%clk
0:00:02.9]} 46... Kb7 {[%clk 0:00:07.5]} 47. Rg6 {[%clk 0:00:03.2]} 47... Be5+
{[%clk 0:00:06.1]} 48. Kg4 {[%clk 0:00:03.3]} 48... Rg1 {[%clk 0:00:06.4]} 49.
Kf5 {[%clk 0:00:03.4]} 49... Ba1 {[%clk 0:00:06]} 50. Qh3 {[%clk 0:00:03.5]}
50... Rf1+ {[%clk 0:00:04.1]} 51. Kg5 {[%clk 0:00:04]} 51... Bf7 {[%clk
0:00:03.2]} 52. Rh6 {[%clk 0:00:03.3]} 52... Rc1 {[%clk 0:00:02.3]} 53. Qd3
{[%clk 0:00:03.2]} 53... Rc4 {[%clk 0:00:02]} 54. Rh7 {[%clk 0:00:02.7]} 54...
Be6 {[%clk 0:00:02.3]} 55. Re7 {[%clk 0:00:02.8]} 55... Bg8 {[%clk 0:00:01.6]}
56. Nxg8 {[%clk 0:00:02.9]} 56... Rxb4 {[%clk 0:00:02.3]} 57. Qd7 {[%clk
0:00:02.6]} 57... Rb5+ {[%clk 0:00:02.9]} 58. Kg4 {[%clk 0:00:02.9]} 58... Be5
{[%clk 0:00:03.7]} 59. Rxe5 {[%clk 0:00:02.7]} 59... Rxe5 {[%clk 0:00:04.6]} 60.
Ne7 {[%clk 0:00:03.4]} 60... Rd5 {[%clk 0:00:05.3]} 61. Qxc6+ {[%clk 0:00:03.2]}
1-0

[Event "Late-Titled-Tuesday-Blitz-February-13-2024"]
[Site "Chess.com"]
[Date "2024.02.13"]
[Round "10"]
[White "cthulhuuu"]
[Black "djano"]
[Result "0-1"]
[WhiteElo "2483"]
[BlackElo "2668"]
[TimeControl "180+1"]
[EndTime "15:56:05 PST"]
[Termination "djano won by resignation"]

1. e4 {[%clk 0:03:00.1]} 1... b6 {[%clk 0:02:56.4]} 2. d3 {[%clk 0:02:58.9]}
2... Bb7 {[%clk 0:02:56.8]} 3. Nd2 {[%clk 0:02:59.4]} 3... g6 {[%clk 0:02:53.7]}
4. g3 {[%clk 0:02:59.8]} 4... h5 {[%clk 0:02:53.8]} 5. h4 {[%clk 0:02:58.4]}
5... Nf6 {[%clk 0:02:54.1]} 6. Bg2 {[%clk 0:02:58.9]} 6... Bg7 {[%clk
0:02:53.5]} 7. Ngf3 {[%clk 0:02:59.3]} 7... c5 {[%clk 0:02:53.1]} 8. O-O {[%clk
0:02:58]} 8... Nc6 {[%clk 0:02:52.9]} 9. Re1 {[%clk 0:02:56.4]} 9... d6 {[%clk
0:02:52.6]} 10. c3 {[%clk 0:02:47.1]} 10... Ng4 {[%clk 0:02:50.4]} 11. Nc4
{[%clk 0:02:43.6]} 11... O-O {[%clk 0:02:47.8]} 12. Ne3 {[%clk 0:02:43.8]} 12...
Bc8 {[%clk 0:02:44.7]} 13. d4 {[%clk 0:02:27.3]} 13... cxd4 {[%clk 0:02:34.3]}
14. cxd4 {[%clk 0:02:28.2]} 14... e5 {[%clk 0:02:32.1]} 15. d5 {[%clk
0:02:16.8]} 15... Nd4 {[%clk 0:02:19.6]} 16. Nxd4 {[%clk 0:02:16.8]} 16... exd4
{[%clk 0:02:20.5]} 17. Nxg4 {[%clk 0:02:17]} 17... Bxg4 {[%clk 0:02:19.5]} 18.
f3 {[%clk 0:02:17.3]} 18... Bd7 {[%clk 0:02:16.3]} 19. Bg5 {[%clk 0:02:14.5]}
19... Bf6 {[%clk 0:01:52.6]} 20. Qd2 {[%clk 0:02:03.9]} 20... Rc8 {[%clk
0:01:46.1]} 21. Rac1 {[%clk 0:02:03.7]} 21... Rc5 {[%clk 0:01:40.9]} 22. Qf4
{[%clk 0:01:02.3]} 22... Bxg5 {[%clk 0:01:32.5]} 23. hxg5 {[%clk 0:01:03.2]}
23... Qc7 {[%clk 0:01:29.6]} 24. g4 {[%clk 0:01:00.6]} 24... hxg4 {[%clk
0:01:26.5]} 25. Kf2 {[%clk 0:00:59.7]} 25... d3 {[%clk 0:01:17.6]} 26. Kg3
{[%clk 0:00:55.2]} 26... Rc8 {[%clk 0:01:03.8]} 27. Rxc5 {[%clk 0:00:26.9]}
27... Qxc5 {[%clk 0:00:57.3]} 28. Qf6 {[%clk 0:00:26.8]} 28... Qc1 {[%clk
0:00:10.2]} 29. Rxc1 {[%clk 0:00:26.6]} 29... Rxc1 {[%clk 0:00:11.1]} 30. Qd8+
{[%clk 0:00:20.5]} 30... Kg7 {[%clk 0:00:11]} 31. Qf6+ {[%clk 0:00:16.7]} 31...
Kg8 {[%clk 0:00:11.4]} 32. Qd4 {[%clk 0:00:14.8]} 32... Bb5 {[%clk 0:00:11.7]}
33. fxg4 {[%clk 0:00:08.4]} 33... Rc2 {[%clk 0:00:10.2]} 34. Bf3 {[%clk
0:00:08.6]} 34... d2 {[%clk 0:00:10.2]} 35. Qf6 {[%clk 0:00:07.6]} 35... Rc1
{[%clk 0:00:08.1]} 36. Qd8+ {[%clk 0:00:06.2]} 36... Kg7 {[%clk 0:00:07.6]} 37.
Qxd6 {[%clk 0:00:06.6]} 37... d1=Q {[%clk 0:00:06.9]} 38. Bxd1 {[%clk
0:00:06.6]} 38... Rxd1 {[%clk 0:00:07.8]} 39. Qf6+ {[%clk 0:00:06.5]} 39... Kg8
{[%clk 0:00:08.2]} 40. Qd8+ {[%clk 0:00:06.8]} 40... Kg7 {[%clk 0:00:08.2]} 41.
Qf6+ {[%clk 0:00:07.1]} 41... Kg8 {[%clk 0:00:08]} 42. d6 {[%clk 0:00:07.4]}
42... Rg1+ {[%clk 0:00:08]} 43. Kf2 {[%clk 0:00:07.2]} 43... Rf1+ {[%clk
0:00:08.4]} 44. Ke3 {[%clk 0:00:07.5]} 44... Rxf6 {[%clk 0:00:09.3]} 45. gxf6
{[%clk 0:00:08.1]} 45... Bd7 {[%clk 0:00:09.8]} 46. g5 {[%clk 0:00:07.4]} 46...
Kf8 {[%clk 0:00:10.4]} 47. Kd4 {[%clk 0:00:06.8]} 47... Ke8 {[%clk 0:00:11]} 48.
b3 {[%clk 0:00:02.8]} 48... Kd8 {[%clk 0:00:11.4]} 49. a4 {[%clk 0:00:03.1]}
49... Be6 {[%clk 0:00:11.5]} 50. b4 {[%clk 0:00:03.6]} 50... a6 {[%clk
0:00:11.2]} 51. a5 {[%clk 0:00:03.8]} 51... bxa5 {[%clk 0:00:10.9]} 52. bxa5
{[%clk 0:00:04.7]} 52... Kc8 {[%clk 0:00:11.3]} 53. Kc5 {[%clk 0:00:05.6]} 53...
Kb7 {[%clk 0:00:11.9]} 54. e5 {[%clk 0:00:06]} 54... Bf5 {[%clk 0:00:11.6]} 55.
Kd4 {[%clk 0:00:05.1]} 55... Kc6 {[%clk 0:00:11.3]} 56. Kc4 {[%clk 0:00:05.6]}
56... Be6+ {[%clk 0:00:11.1]} 57. Kd4 {[%clk 0:00:06]} 57... Kb5 {[%clk
0:00:11.4]} 58. d7 {[%clk 0:00:05.4]} 58... Bxd7 {[%clk 0:00:11.3]} 59. Kd5
{[%clk 0:00:06.3]} 59... Be6+ {[%clk 0:00:10.9]} 60. Kd6 {[%clk 0:00:07.2]}
60... Kxa5 {[%clk 0:00:11]} 61. Ke7 {[%clk 0:00:08.1]} 61... Kb4 {[%clk
0:00:11.5]} 0-1